fUST/lending_fUST_20250625
["ID","MTS","AMOUNT","RATE_DAILY","PERIOD"]
[367419749,1750792242983,-460.0,0.00016712,2]
[367419750,1750792242992,-460.0,0.00016712,2]
[367419751,1750792243002,-801.79,0.00016712,2]
[367419752,1750792243011,-460.0,0.00016712,2]
[367419753,1750792243020,-460.0,0.00016712,2]
[367419754,1750792243030,-786.49,0.00016712,2]
[367419755,1750792243040,-460.0,0.00016712,2]
[367419756,1750792243049,-1124.69,0.00016712,2]
[367419757,1750792243058,-460.0,0.00016712,2]
[367419758,1750792243068,-460.0,0.00016712,2]
[367419759,1750792243077,-460.0,0.00016712,2]
[367419760,1750792243086,-460.0,0.00016712,2]
[367419762,1750792243228,-460.0,0.00016712,2]
[367419763,1750792243238,-460.0,0.00016712,2]
[367419764,1750792243248,-460.0,0.00016712,2]
[367419765,1750792243257,-460.0,0.00016712,2]
[367419766,1750792243266,-460.0,0.00016712,2]
[367419767,1750792243277,-460.0,0.00016712,2]
[367419769,1750792243287,-460.0,0.00016712,2]
[367419771,1750792243296,-460.0,0.00016712,2]
[367419774,1750792243306,-460.0,0.00016712,2]
[367419775,1750792243315,-460.0,0.00016712,2]
[367419777,1750792243324,-460.0,0.00016712,2]
[367419779,1750792243333,-460.0,0.00016712,2]
[367419781,1750792243342,-460.0,0.00016712,2]
[367419782,1750792243354,-460.0,0.00016712,2]
[367419784,1750792243364,-460.0,0.00016712,2]
[367419786,1750792243373,-460.0,0.00016712,2]
[367419788,1750792243382,-460.0,0.00016712,2]
[367419790,1750792243391,-460.0,0.00016712,2]
[367419792,1750792243401,-160.45182555,0.00016712,2]
[367419794,1750792243409,-460.0,0.00016712,2]
[367419796,1750792243419,-460.0,0.00016712,2]
[367419798,1750792243428,-460.0,0.00016712,2]
[367419799,1750792243437,-460.0,0.00016712,2]
[367419800,1750792243447,-691.79,0.00016712,2]
[367419801,1750792243456,-460.0,0.00016712,2]
[367419802,1750792243466,-2443.68,0.00016712,2]
[367419803,1750792243476,-460.0,0.00016712,2]
[367419804,1750792243485,-460.0,0.00016712,2]
[367419805,1750792243495,-460.0,0.00016712,2]
[367419806,1750792243504,-460.0,0.00016712,2]
[367419807,1750792243514,-460.0,0.00016712,2]
[367419808,1750792243523,-460.0,0.00016712,2]
[367419809,1750792243532,-460.0,0.00016712,2]
[367419810,1750792243542,-460.0,0.00016712,2]
[367419811,1750792243551,-460.0,0.00016712,2]
[367419812,1750792243561,-460.0,0.00016712,2]
[367419814,1750792243571,-460.0,0.00016712,2]
[367419816,1750792243581,-460.0,0.00016712,2]
[367419818,1750792243590,-460.0,0.00016712,2]
[367419820,1750792243599,-460.0,0.00016712,2]
[367419822,1750792243608,-460.0,0.00016712,2]
[367419824,1750792243618,-922.98,0.00016712,2]
[367419826,1750792243627,-460.0,0.00016712,2]
[367419828,1750792243636,-460.0,0.00016712,2]
[367419830,1750792243646,-460.0,0.00016712,2]
[367419831,1750792243655,-460.0,0.00016712,2]
[367419832,1750792243665,-460.0,0.00016712,2]
[367419833,1750792243675,-460.0,0.00016712,2]
[367419834,1750792243685,-460.0,0.00016712,2]
[367419835,1750792243695,-460.0,0.00016712,2]
[367419836,1750792243705,-460.0,0.00016712,2]
[367419837,1750792243715,-175.06,0.00016712,2]
[367419838,1750792243725,-460.0,0.00016712,2]
[367419839,1750792243735,-514.7,0.00016712,2]
[367419840,1750792243744,-933.5,0.00016712,2]
[367419841,1750792243754,-1043.63,0.00016712,2]
[367419842,1750792243764,-321.52029599,0.00016712,2]
[367419843,1750792243773,-460.0,0.00016712,2]
[367419844,1750792243782,-460.0,0.00016712,2]
[367419845,1750792243793,-470.72,0.00016712,2]
[367419846,1750792243802,-460.0,0.00016712,2]
[367419847,1750792243811,-460.0,0.00016712,2]
[367419848,1750792243821,-460.0,0.00016712,2]
[367419849,1750792243830,-460.0,0.00016712,2]
[367419850,1750792243839,-460.0,0.00016712,2]
[367419851,1750792243849,-460.0,0.00016712,2]
[367419852,1750792243862,-460.0,0.00016712,2]
[367419853,1750792243871,-691.86,0.00016712,2]
[367419854,1750792243880,-460.0,0.00016712,2]
[367419855,1750792243889,-460.0,0.00016712,2]
[367419856,1750792243899,-460.0,0.00016712,2]
[367419857,1750792243909,-478.28,0.00016712,2]
[367419858,1750792243919,-500.0,0.00016973,2]
[367419859,1750792243928,-460.0,0.00016986,2]
[367419860,1750792243938,-460.0,0.00016986,2]
[367419861,1750792243949,-480.99,0.00016986,2]
[367419862,1750792243958,-460.0,0.00016986,2]
[367419863,1750792243968,-460.0,0.00016986,2]
[367419864,1750792243977,-460.0,0.00016986,2]
[367419865,1750792243987,-460.0,0.00016986,2]
[367419866,1750792243998,-460.0,0.00016986,2]
[367419867,1750792244007,-460.0,0.00016986,2]
[367419868,1750792244016,-460.0,0.00016986,2]
[367419869,1750792244026,-294.68,0.00016986,2]
[367419870,1750792244036,-460.0,0.00016986,2]
[367419871,1750792244046,-467.00975208,0.00016986,2]
[367419872,1750792244055,-460.0,0.00016986,2]
[367419873,1750792244065,-527.28,0.00016986,2]
[367419874,1750792244074,-460.0,0.00016986,2]
[367419875,1750792244084,-460.0,0.00016986,2]
[367419876,1750792244093,-400.81107327,0.00016986,2]
[367419877,1750792244102,-460.0,0.00016986,2]
[367419878,1750792244113,-460.0,0.00016986,2]
[367419879,1750792244122,-460.0,0.00016986,2]
[367419880,1750792244131,-460.0,0.00016986,2]
[367419881,1750792244140,-460.0,0.00016986,2]
[367419882,1750792244149,-460.0,0.00016986,2]
[367419883,1750792244159,-944.84,0.00016986,2]
[367419884,1750792244168,-527.93,0.00016986,2]
[367419885,1750792244177,-898.97,0.00016986,2]
[367419886,1750792244186,-167.83,0.00016986,2]
[367419887,1750792244196,-460.0,0.00016986,2]
[367419888,1750792244205,-460.0,0.00016986,2]
[367419889,1750792244215,-460.0,0.00016986,2]
[367419890,1750792244224,-460.0,0.00016986,2]
[367419891,1750792244233,-460.0,0.00016986,2]
[367419892,1750792244242,-202.4,0.00016986,2]
[367419893,1750792244251,-460.0,0.00016986,2]
[367419894,1750792244260,-460.0,0.00016986,2]
[367419895,1750792244269,-460.0,0.00016986,2]
[367419896,1750792244278,-460.0,0.00016986,2]
[367419897,1750792244288,-460.0,0.00016986,2]
[367419898,1750792244297,-460.0,0.00016986,2]
[367419899,1750792244306,-460.0,0.00016986,2]
[367419900,1750792244316,-666.2,0.00016986,2]
[367419901,1750792244324,-460.0,0.00016986,2]
[367419902,1750792244333,-801.79,0.00016986,2]
[367419903,1750792244342,-460.0,0.00016986,2]
[367419904,1750792244351,-786.49,0.00016986,2]
[367419906,1750792244360,-460.0,0.00016986,2]
[367419908,1750792244369,-1124.69,0.00016986,2]
[367419910,1750792244378,-460.0,0.00016986,2]
[367419911,1750792244387,-266.13712639,0.00016986,2]
[367419912,1750792244395,-460.0,0.00016986,2]
[367419914,1750792244404,-532.61,0.00016986,2]
[367419915,1750792244413,-460.0,0.00016986,2]
[367419916,1750792244422,-460.0,0.00016986,2]
[367419917,1750792244431,-460.0,0.00016986,2]
[367419918,1750792244441,-460.0,0.00016986,2]
[367419919,1750792244449,-460.0,0.00016986,2]
[367419920,1750792244459,-460.0,0.00016986,2]
[367419921,1750792244468,-460.0,0.00016986,2]
[367419922,1750792244478,-460.0,0.00016986,2]
[367419923,1750792244487,-460.0,0.00016986,2]
[367419924,1750792244496,-460.0,0.00016986,2]
[367419925,1750792244506,-460.0,0.00016986,2]
[367419926,1750792244516,-460.0,0.00016986,2]
[367419927,1750792244525,-405.00700724,0.00016986,2]
[367419928,1750792244534,-460.0,0.00016986,2]
[367419929,1750792244543,-460.0,0.00016986,2]
[367419930,1750792244553,-691.79,0.00016986,2]
[367419931,1750792244563,-460.0,0.00016986,2]
[367419932,1750792244573,-2443.68,0.00016986,2]
[367419933,1750792244582,-165.89,0.00016986,2]
[367419934,1750792244591,-460.0,0.00016986,2]
[367419935,1750792244600,-460.0,0.00016986,2]
[367419936,1750792244610,-460.0,0.00016986,2]
[367419937,1750792244619,-460.0,0.00016986,2]
[367419938,1750792244628,-460.0,0.00016986,2]
[367419939,1750792244637,-460.0,0.00016986,2]
[367419940,1750792244646,-460.0,0.00016986,2]
[367419941,1750792244656,-922.98,0.00016986,2]
[367419942,1750792244665,-460.0,0.00016986,2]
[367419943,1750792244674,-460.0,0.00016986,2]
[367419944,1750792244683,-364.48113077,0.00016986,2]
[367419945,1750792244693,-460.0,0.00016986,2]
[367419946,1750792244702,-479.1,0.00016986,2]
[367419947,1750792244711,-460.0,0.00016986,2]
[367419948,1750792244720,-460.0,0.00016986,2]
[367419949,1750792244729,-933.5,0.00016986,2]
[367419950,1750792244739,-1043.63,0.00016986,2]
[367419951,1750792244748,-460.0,0.00016986,2]
[367419952,1750792244757,-460.0,0.00016986,2]
[367419953,1750792244766,-460.0,0.00016986,2]
[367419954,1750792244775,-460.0,0.00016986,2]
[367419955,1750792244787,-460.0,0.00016986,2]
[367419956,1750792244799,-691.86,0.00016986,2]
[367419957,1750792244811,-460.0,0.00016986,2]
[367419958,1750792244823,-500.0,0.00017015,2]
[367419959,1750792244836,-500.0,0.00017015,2]
[367419960,1750792244848,-500.0,0.00017033,2]
[367419961,1750792244860,-500.0,0.00017036,2]
[367419962,1750792244871,-500.0,0.00017045,2]
[367419963,1750792244884,-500.0,0.00017045,2]
[367419964,1750792244895,-500.0,0.00017054,2]
[367419965,1750792244907,-274.17274144,0.00017058,2]
[367419966,1750792244920,-500.0,0.00017058,2]
[367419967,1750792244932,-151.0,0.0001726,2]
[367419968,1750792244945,-151.0,0.0001726,2]
[367419969,1750792244956,-151.0,0.0001726,2]
[367419970,1750792244967,-392.65689835,0.0001726,2]
[367419971,1750792244979,-460.0,0.0001726,2]
[367419972,1750792244992,-158.21779657,0.0001726,2]
[367419973,1750792245005,-460.0,0.0001726,2]
[367419974,1750792245017,-460.0,0.0001726,2]
[367419975,1750792245028,-460.0,0.0001726,2]
[367419976,1750792245041,-460.0,0.0001726,2]
[367419977,1750792245053,-359.59,0.0001726,2]
[367419978,1750792245064,-208.23,0.0001726,2]
[367419979,1750792245075,-944.84,0.0001726,2]
[367419980,1750792245087,-527.93,0.0001726,2]
[367419981,1750792245099,-898.97,0.0001726,2]
[367419982,1750792245111,-460.0,0.0001726,2]
[367419983,1750792245122,-460.0,0.0001726,2]
[367419984,1750792245132,-460.0,0.0001726,2]
[367419985,1750792245143,-339.95,0.0001726,2]
[367419986,1750792245153,-460.0,0.0001726,2]
[367419987,1750792245164,-460.0,0.0001726,2]
[367419988,1750792245175,-460.0,0.0001726,2]
[367419989,1750792245187,-460.0,0.0001726,2]
[367419990,1750792245198,-460.0,0.0001726,2]
[367419991,1750792245210,-666.2,0.0001726,2]
[367419992,1750792245222,-801.79,0.0001726,2]
[367419993,1750792245234,-460.0,0.0001726,2]
[367419994,1750792245245,-786.49,0.0001726,2]
[367419995,1750792245257,-1124.69,0.0001726,2]
[367419996,1750792245269,-460.0,0.0001726,2]
[367419997,1750792245280,-460.0,0.0001726,2]
[367419998,1750792245292,-460.0,0.0001726,2]
[367419999,1750792245304,-460.0,0.0001726,2]
[367420000,1750792245314,-468.98,0.0001726,2]
[367420001,1750792245324,-460.0,0.0001726,2]
[367420002,1750792245334,-460.0,0.0001726,2]
[367420003,1750792245343,-460.0,0.0001726,2]
[367420004,1750792245354,-460.0,0.0001726,2]
[367420005,1750792245365,-460.0,0.0001726,2]
[367420006,1750792245378,-691.79,0.0001726,2]
[367420007,1750792245389,-460.0,0.0001726,2]
[367420008,1750792245401,-2443.68,0.0001726,2]
[367420009,1750792245411,-460.0,0.0001726,2]
[367420010,1750792245422,-598.75925412,0.0001726,2]
[367420011,1750792245433,-460.0,0.0001726,2]
[367420012,1750792245444,-599.27,0.0001726,2]
[367420013,1750792245455,-460.0,0.0001726,2]
[367420014,1750792245466,-460.0,0.0001726,2]
[367420015,1750792245479,-922.98,0.0001726,2]
[367420016,1750792245489,-460.0,0.0001726,2]
[367420017,1750792245500,-460.0,0.0001726,2]
[367420018,1750792245511,-460.0,0.0001726,2]
[367420019,1750792245521,-460.0,0.0001726,2]
[367420020,1750792245531,-933.5,0.0001726,2]
[367420021,1750792245542,-1043.63,0.0001726,2]
[367420022,1750792245553,-460.0,0.0001726,2]
[367420023,1750792245564,-460.0,0.0001726,2]
[367420024,1750792245575,-370.96,0.0001726,2]
[367420025,1750792245586,-523.81,0.0001726,2]
[367420026,1750792245597,-691.86,0.0001726,2]
[367420027,1750792245607,-460.0,0.0001726,2]
[367420028,1750792245618,-1000.0,0.00017521,2]
[367420029,1750792245629,-460.0,0.00017534,2]
[367420030,1750792245640,-460.0,0.00017534,2]
[367420031,1750792245651,-245.04,0.00017534,2]
[367420032,1750792245663,-460.0,0.00017534,2]
[367420033,1750792245674,-944.84,0.00017534,2]
[367420034,1750792245685,-527.93,0.00017534,2]
[367420035,1750792245696,-898.97,0.00017534,2]
[367420036,1750792245707,-460.0,0.00017534,2]
[367420037,1750792245717,-460.0,0.00017534,2]
[367420038,1750792245728,-460.0,0.00017534,2]
[367420039,1750792245741,-182.57,0.00017534,2]
[367420040,1750792245752,-487.28,0.00017534,2]
[367420041,1750792245763,-460.0,0.00017534,2]
[367420042,1750792245774,-666.2,0.00017534,2]
[367420043,1750792245785,-801.79,0.00017534,2]
[367420044,1750792245796,-460.0,0.00017534,2]
[367420045,1750792245807,-786.49,0.00017534,2]
[367420046,1750792245818,-1124.69,0.00017534,2]
[367420047,1750792245829,-460.0,0.00017534,2]
[367420048,1750792245839,-460.0,0.00017534,2]
[367420049,1750792245850,-460.0,0.00017534,2]
[367420050,1750792245864,-460.0,0.00017534,2]
[367420051,1750792245875,-460.0,0.00017534,2]
[367420052,1750792245886,-460.0,0.00017534,2]
[367420053,1750792245899,-460.0,0.00017534,2]
[367420054,1750792245910,-691.79,0.00017534,2]
[367420055,1750792245920,-460.0,0.00017534,2]
[367420056,1750792245932,-2443.68,0.00017534,2]
[367420057,1750792245943,-157.21,0.00017534,2]
[367420058,1750792245954,-460.0,0.00017534,2]
[367420059,1750792245965,-460.0,0.00017534,2]
[367420060,1750792245976,-922.98,0.00017534,2]
[367420061,1750792245986,-460.0,0.00017534,2]
[367420062,1750792245997,-460.0,0.00017534,2]
[367420063,1750792246007,-460.0,0.00017534,2]
[367420064,1750792246018,-460.0,0.00017534,2]
[367420065,1750792246028,-933.5,0.00017534,2]
[367420066,1750792246039,-1043.63,0.00017534,2]
[367420067,1750792246049,-460.0,0.00017534,2]
[367420068,1750792246059,-460.0,0.00017534,2]
[367420069,1750792246070,-691.86,0.00017534,2]
[367420070,1750792246080,-1000.0,0.00017563,2]
[367420071,1750792246090,-224.00444455,0.00017563,2]
[367420072,1750792246102,-268.0,0.00017577,2]
[367420073,1750792246112,-1000.0,0.00017581,2]
[367420074,1750792246123,-500.0,0.00017584,2]
[367420076,1750792246133,-500.0,0.00017593,2]
[367420078,1750792246143,-500.0,0.00017593,2]
[367420080,1750792246154,-500.0,0.00017602,2]
[367420082,1750792246165,-151.0,0.0001762,2]
[367420084,1750792246175,-151.0,0.0001762,2]
[367420085,1750792246187,-160.0,0.0001762,2]
[367420086,1750792246198,-425.14181427,0.0001762,2]
[367420087,1750792246209,-836.80226758,0.0001762,2]
[367420088,1750792246220,-160.0,0.0001762,2]
[367420089,1750792246231,-846.68469334,0.0001762,2]
[367420090,1750792246241,-213.66798275,0.0001762,2]
[367420091,1750792246252,-12556.00642039,0.0001762,2]
[367420092,1750792246262,-160.0,0.0001762,2]
[367420093,1750792246272,-160.0,0.0001762,2]
[367420094,1750792246283,-160.0,0.0001762,2]
[367420095,1750792246294,-160.0,0.0001762,2]
[367420096,1750792246304,-230.20892031,0.0001762,2]
[367420097,1750792246316,-268.0,0.00017628,2]
[367420098,1750792246326,-1860.52,0.00017798,3]
[367420100,1750792246336,-930.26,0.00017798,3]
[367420102,1750792246346,-465.12,0.00017798,3]
[367420104,1750792246357,-151.0,0.00017808,2]
[367420106,1750792246367,-151.0,0.00017808,2]
[367420108,1750792246378,-152.442338,0.00017808,2]
[367420110,1750792246389,-460.0,0.00017808,2]
[367420112,1750792246399,-460.0,0.00017808,2]
[367420114,1750792246410,-944.84,0.00017808,2]
[367420117,1750792246420,-527.93,0.00017808,2]
[367420119,1750792246430,-898.97,0.00017808,2]
[367420121,1750792246442,-460.0,0.00017808,2]
[367420123,1750792246453,-460.0,0.00017808,2]
[367420125,1750792246464,-460.0,0.00017808,2]
[367420127,1750792246475,-460.0,0.00017808,2]
[367420129,1750792246485,-666.2,0.00017808,2]
[367420132,1750792246496,-801.79,0.00017808,2]
[367420134,1750792246507,-460.0,0.00017808,2]
[367420136,1750792246517,-786.49,0.00017808,2]
[367420138,1750792246528,-1124.69,0.00017808,2]
[367420140,1750792246539,-460.0,0.00017808,2]
[367420142,1750792246550,-151.0,0.00017808,2]
[367420144,1750792246560,-460.0,0.00017808,2]
[367420147,1750792246571,-460.0,0.00017808,2]
[367420149,1750792246582,-460.0,0.00017808,2]
[367420151,1750792246593,-460.0,0.00017808,2]
[367420153,1750792246604,-460.0,0.00017808,2]
[367420155,1750792246615,-460.0,0.00017808,2]
[367420176,1750792246766,-691.79,0.00017808,2]
[367420179,1750792246824,-502.34,0.00017808,2]
[367420181,1750792246836,-2443.68,0.00017808,2]
[367420183,1750792246846,-460.0,0.00017808,2]
[367420185,1750792246854,-460.0,0.00017808,2]
[367420187,1750792246863,-922.98,0.00017808,2]
[367420189,1750792246876,-460.0,0.00017808,2]
[367420191,1750792246885,-460.0,0.00017808,2]
[367420193,1750792246894,-460.0,0.00017808,2]
[367420195,1750792246903,-460.0,0.00017808,2]
[367420197,1750792246916,-933.5,0.00017808,2]
[367420199,1750792246927,-1043.63,0.00017808,2]
[367420201,1750792246937,-460.0,0.00017808,2]
[367420203,1750792246947,-691.86,0.00017808,2]
[367420205,1750792246956,-420.0,0.00017955,2]
[367420207,1750792246965,-420.0,0.00017958,2]
[367420208,1750792246975,-427.0,0.0001805,2]
[367420209,1750792246984,-268.0,0.00018065,2]
[367420210,1750792246993,-460.0,0.00018082,2]
[367420211,1750792247002,-460.0,0.00018082,2]
[367420212,1750792247012,-944.84,0.00018082,2]
[367420213,1750792247021,-527.93,0.00018082,2]
[367420214,1750792247030,-898.97,0.00018082,2]
[367420215,1750792247040,-460.0,0.00018082,2]
[367420217,1750792247049,-460.0,0.00018082,2]
[367420219,1750792247058,-460.0,0.00018082,2]
[367420221,1750792247067,-460.0,0.00018082,2]
[367420223,1750792247076,-666.2,0.00018082,2]
[367420225,1750792247086,-801.79,0.00018082,2]
[367420227,1750792247095,-460.0,0.00018082,2]
[367420229,1750792247104,-786.49,0.00018082,2]
[367420231,1750792247113,-1124.69,0.00018082,2]
[367420233,1750792247122,-460.0,0.00018082,2]
[367420235,1750792247131,-460.0,0.00018082,2]
[367420237,1750792247140,-460.0,0.00018082,2]
[367420239,1750792247149,-460.0,0.00018082,2]
[367420241,1750792247159,-460.0,0.00018082,2]
[367420243,1750792247167,-460.0,0.00018082,2]
[367420245,1750792247177,-460.0,0.00018082,2]
[367420247,1750792247186,-691.79,0.00018082,2]
[367420249,1750792247196,-2443.68,0.00018082,2]
[367420251,1750792247205,-290.43,0.00018082,2]
[367420253,1750792247214,-460.0,0.00018082,2]
[367420255,1750792247223,-922.98,0.00018082,2]
[367420257,1750792247232,-460.0,0.00018082,2]
[367420259,1750792247241,-460.0,0.00018082,2]
[367420261,1750792247250,-460.0,0.00018082,2]
[367420263,1750792247259,-460.0,0.00018082,2]
[367420265,1750792247268,-933.5,0.00018082,2]
[367420267,1750792247277,-1043.63,0.00018082,2]
[367420269,1750792247286,-460.0,0.00018082,2]
[367420271,1750792247295,-691.86,0.00018082,2]
[367420273,1750792247304,-1500.0,0.00018111,2]
[367420275,1750792247313,-151.0,0.00018129,2]
[367420276,1750792247322,-151.0,0.00018129,2]
[367420278,1750792247331,-151.0,0.00018129,2]
[367420280,1750792247340,-151.0,0.00018129,2]
[367420282,1750792247349,-162.485329,0.00018129,2]
[367420284,1750792247358,-207.132128,0.00018129,2]
[367420286,1750792247368,-239.608041,0.00018129,2]
[367420288,1750792247377,-239.608041,0.00018129,2]
[367420290,1750792247387,-1500.0,0.00018129,2]
[367420292,1750792247396,-965.0,0.00018235,2]
[367420294,1750792247406,-2160.0,0.00018235,2]
[367420296,1750792247415,-654.0,0.00018235,2]
[367420298,1750792247424,-406.0,0.00018235,2]
[367420300,1750792247433,-406.0,0.00018235,2]
[367420302,1750792247443,-427.0,0.00018276,2]
[367420304,1750792247452,-574.8597778,0.00018296,2]
[367420306,1750792247462,-574.8597778,0.00018296,2]
[367420308,1750792247471,-159.1692736,0.00018296,2]
[367420310,1750792247480,-159.1692736,0.00018296,2]
[367420312,1750792247490,-574.8597778,0.00018296,2]
[367420314,1750792247499,-159.1692736,0.00018296,2]
[367420316,1750792247508,-159.1692736,0.00018296,2]
[367420318,1750792247517,-293.8193946,0.00018296,2]
[367420320,1750792247528,-151.0,0.00018337,2]
[367420322,1750792247537,-151.0,0.00018337,2]
[367420324,1750792247546,-151.0,0.00018337,2]
[367420326,1750792247555,-151.0,0.00018337,2]
[367420328,1750792247567,-151.0,0.00018337,2]
[367420330,1750792247576,-151.0,0.00018337,2]
[367420332,1750792247586,-151.0,0.00018337,2]
[367420334,1750792247595,-300.577004,0.00018337,2]
[367420336,1750792247604,-300.577004,0.00018337,2]
[367420338,1750792247614,-197.398771,0.00018337,2]
[367420340,1750792247623,-151.0,0.00018337,2]
[367420342,1750792247633,-500.0,0.00018337,2]
[367420344,1750792247642,-207.4,0.00018337,2]
[367420346,1750792247652,-500.0,0.00018337,2]
[367420348,1750792247661,-500.0,0.00018337,2]
[367420350,1750792247670,-514.63180266,0.00018337,2]
[367420352,1750792247679,-1756.84067045,0.00018337,2]
[367420354,1750792247688,-500.0,0.00018337,2]
[367420356,1750792247698,-500.0,0.00018337,2]
[367420358,1750792247707,-500.0,0.00018337,2]
[367420360,1750792247716,-500.0,0.00018337,2]
[367420362,1750792247725,-500.0,0.00018337,2]
[367420364,1750792247734,-500.0,0.00018337,2]
[367420366,1750792247744,-500.0,0.00018337,2]
[367420368,1750792247753,-500.0,0.00018337,2]
[367420369,1750792247762,-500.0,0.00018337,2]
[367420371,1750792247771,-500.0,0.00018337,2]
[367420373,1750792247780,-500.0,0.00018337,2]
[367420375,1750792247789,-500.0,0.00018337,2]
[367420377,1750792247798,-500.0,0.00018337,2]
[367420379,1750792247807,-500.0,0.00018337,2]
[367420381,1750792247816,-500.0,0.00018337,2]
[367420383,1750792247826,-5000.0,0.00018337,2]
[367420385,1750792247834,-500.0,0.00018337,2]
[367420387,1750792247843,-500.0,0.00018337,2]
[367420389,1750792247852,-25000.0,0.00018337,2]
[367420391,1750792247862,-19473.80912849,0.00018337,2]
[367420393,1750792247875,-151.0,0.00018356,2]
[367420395,1750792247885,-460.0,0.00018356,2]
[367420398,1750792247895,-460.0,0.00018356,2]
[367420400,1750792247905,-944.84,0.00018356,2]
[367420402,1750792247914,-527.93,0.00018356,2]
[367420403,1750792247923,-898.97,0.00018356,2]
[367420405,1750792247932,-460.0,0.00018356,2]
[367420407,1750792247943,-460.0,0.00018356,2]
[367420409,1750792247952,-309.26623412,0.00018356,2]
[367420411,1750792247961,-460.0,0.00018356,2]
[367420413,1750792247970,-666.2,0.00018356,2]
[367420415,1750792247979,-801.79,0.00018356,2]
[367420417,1750792247990,-460.0,0.00018356,2]
[367420419,1750792248001,-1124.69,0.00018356,2]
[367420421,1750792248011,-786.49,0.00018356,2]
[367420423,1750792248021,-460.0,0.00018356,2]
[367420425,1750792248033,-151.0,0.00018356,2]
[367420428,1750792248043,-460.0,0.00018356,2]
[367420430,1750792248054,-460.0,0.00018356,2]
[367420432,1750792248063,-460.0,0.00018356,2]
[367420434,1750792248073,-460.0,0.00018356,2]
[367420435,1750792248082,-460.0,0.00018356,2]
[367420437,1750792248091,-354.25,0.00018356,2]
[367420439,1750792248101,-2443.68,0.00018356,2]
[367420441,1750792248111,-691.79,0.00018356,2]
[367420444,1750792248120,-109.47691815,0.00018356,2]
[367420457,1750792248263,-350.52308185,0.00018356,2]
[367420458,1750792248274,-922.98,0.00018356,2]
[367420459,1750792248283,-460.0,0.00018356,2]
[367420460,1750792248293,-460.0,0.00018356,2]
[367420461,1750792248303,-460.0,0.00018356,2]
[367420462,1750792248312,-460.0,0.00018356,2]
[367420463,1750792248322,-933.5,0.00018356,2]
[367420464,1750792248331,-1043.63,0.00018356,2]
[367420465,1750792248340,-460.0,0.00018356,2]
[367420466,1750792248349,-691.86,0.00018356,2]
[367420467,1750792248359,-427.0,0.00018466,2]
[367420468,1750792248368,-460.0,0.0001863,2]
[367420469,1750792248378,-460.0,0.0001863,2]
[367420470,1750792248388,-944.84,0.0001863,2]
[367420471,1750792248398,-151.0,0.0001863,2]
[367420472,1750792248407,-527.93,0.0001863,2]
[367420473,1750792248416,-898.97,0.0001863,2]
[367420474,1750792248424,-460.0,0.0001863,2]